bitfinex-derivatives/quotes_SOLF0:USTF0_20241107
["timestamp","ask_amount","ask_price","bid_price","bid_amount"]
[1730995896070,0.6223,192.07,192.0,2.6018]
[1730995896275,24.6385101,192.11,192.0,2.6018]
[1730995896483,2.6013,192.05,192.0,1.6018]
[1730995897080,2.6011,192.06,192.01,2.6017]
[1730995897475,24.6385101,192.11,192.01,2.6017]
[1730995897684,2.601,192.07,192.02,2.6016]
[1730995897879,1.601,192.07,192.02,2.6016]
[1730995898078,24.6385101,192.11,191.96,20.0185101]
[1730995898484,20.0185101,192.11,191.96,20.0185101]
[1730995899074,19.0185101,192.11,191.96,20.0185101]
[1730995899273,19.0185101,192.11,192.0,2.6018]
[1730995899274,2.6012,192.06,192.0,2.6018]
[1730995899474,19.0185101,192.11,192.0,1.6018]
[1730995899879,2.6009,192.08,192.0,1.6018]
[1730995900182,19.0185101,192.11,191.95,22.5293101]
[1730995900386,18.0185101,192.11,191.99,2.602]
[1730995900586,18.0185101,192.11,191.99,1.602]
[1730995900777,2.6013,192.05,191.99,1.602]
[1730995900981,20.0185101,192.08,191.95,2.5108]
[1730995901377,20.0185101,192.08,191.94,4.145]
[1730995901378,2.602,192.0,191.94,2.6027]
[1730995901583,22.68118006,192.05,191.92,24.6385101]
[1730995901791,2.5372,192.04,191.92,4.62]
[1730995902085,2.6019,192.0,191.94,2.6026]
[1730995902286,2.5372,192.04,191.94,2.6026]
[1730995902487,2.5372,192.04,191.92,4.62]
[1730995902690,1.5372,192.04,191.92,4.62]
[1730995903088,1.5372,192.04,191.92,3.62]
[1730995903798,2.6019,192.0,191.94,2.6026]
[1730995903981,1.5372,192.04,191.92,3.62]
[1730995904690,1.6015,192.03,191.93,2.4666]
[1730995904890,1.6015,192.03,191.94,4.8299]
[1730995905195,1.6015,192.03,191.94,3.8299]
[1730995905391,2.6016,192.02,191.97,2.6022]
[1730995905890,5.1893,192.07,191.97,2.6022]
[1730995906291,5.1893,192.07,191.98,1.6022]
[1730995906989,2.6024,191.97,191.88,20.0185101]
[1730995907194,1.6024,191.97,191.88,20.0185101]
[1730995907393,5.03173531,192.03,191.87,1.5192]
[1730995907587,2.6025,191.96,191.87,21.5377101]
[1730995907891,2.4603,192.03,191.87,21.5377101]
[1730995908091,2.4603,192.03,191.89,2.6034]
[1730995908092,2.6028,191.94,191.89,2.6034]
[1730995908485,1.6028,191.94,191.89,2.6034]
[1730995908885,1.6028,191.94,191.89,1.6034]
[1730995909892,20.0185101,192.02,191.89,1.6034]
[1730995910392,20.0185101,192.02,191.87,26.1577101]
[1730995910692,20.0185101,192.02,191.87,6.1392]
[1730995910887,2.603,191.93,191.88,2.6034]
[1730995911083,4.62,192.0,191.85,4.7861]
[1730995911384,2.6033,191.9,191.86,2.6038]
[1730995911790,1.6033,191.9,191.86,2.6038]
[1730995911987,1.6033,191.9,191.85,4.7861]
[1730995912291,1.6033,191.9,191.86,2.6038]
[1730995912496,1.6033,191.9,191.85,3.7861]
[1730995912692,1.6033,191.9,191.85,6.3899]
[1730995912892,0.6033,191.9,191.85,6.3899]
[1730995913095,2.53,191.97,191.85,3.7861]
[1730995913287,2.53,191.97,191.87,19.0185101]
[1730995913486,2.6025,191.96,191.91,2.603]
[1730995913794,2.53,191.97,191.91,2.603]
[1730995914099,1.53,191.97,191.91,2.603]
[1730995914787,2.6026,191.95,191.91,2.603]
[1730995915188,1.53,191.97,191.87,19.0185101]
[1730995915489,2.6028,191.94,191.9,2.6032]
[1730995915886,2.6025,191.96,191.91,2.603]
[1730995916092,2.6025,191.96,191.87,19.0185101]
[1730995916494,20.0185101,192.01,191.91,2.603]
[1730995916700,15.64,192.11,191.87,19.0185101]
[1730995916886,20.0185101,192.04,191.87,19.0185101]
[1730995917096,5.0298,192.07,191.93,20.0185101]
[1730995917293,5.0298,192.07,191.94,7.37]
[1730995917595,2.6014,192.04,191.99,2.602]
[1730995917793,2.5362,192.07,191.94,6.37]
[1730995917995,20.0185101,192.11,191.96,20.0185101]
[1730995918196,2.6012,192.05,192.01,2.6018]
[1730995918397,1.6012,192.05,192.01,2.6018]
[1730995918788,1.6012,192.05,192.01,1.6018]
[1730995919093,2.601,192.07,192.02,2.6016]
[1730995919295,20.0185101,192.11,191.96,20.0185101]
[1730995919696,2.6014,192.04,191.98,2.6021]
[1730995919999,2.6014,192.04,191.96,19.0185101]
[1730995920191,19.0185101,192.11,191.96,19.0185101]
[1730995920593,20.0185101,192.05,191.94,2.4452]
[1730995920902,2.488,192.04,191.94,2.4452]
[1730995921092,19.0185101,192.02,191.94,2.4452]
[1730995921595,2.6025,191.96,191.94,1.4452]
[1730995922697,1.6025,191.96,191.94,1.4452]
[1730995922898,1.6025,191.96,191.94,0.4452]
[1730995923095,20.0185101,191.99,191.94,0.4452]
[1730995923303,2.6026,191.95,191.94,0.4452]
[1730995923499,20.0185101,191.95,191.82,27.1089101]
[1730995923706,1.6034,191.9,191.83,2.6041]
[1730995924002,2.5451,191.94,191.82,27.1089101]
[1730995924301,2.6034,191.89,191.83,2.6042]
[1730995924494,24.6185101,191.92,191.74,20.0185101]
[1730995925104,23.6185101,191.92,191.74,20.0185101]
[1730995925402,20.0185101,191.89,191.74,20.0185101]
[1730995925803,20.0185101,191.89,191.74,19.0185101]
[1730995926416,2.6041,191.84,191.74,19.0185101]
[1730995926612,1.6041,191.84,191.74,19.0185101]
[1730995927122,1.6041,191.84,191.74,18.0185101]
[1730995927414,2.37,191.93,191.72,61.29484466]
[1730995927415,2.5451,191.94,191.81,20.0185101]
[1730995927616,2.5451,191.94,191.82,2.421]
[1730995927917,1.5451,191.94,191.82,2.421]
[1730995928113,1.5451,191.94,191.82,1.421]
[1730995928309,2.6033,191.9,191.82,1.421]
[1730995928713,21.5636101,191.94,191.82,1.421]
[1730995929018,2.6036,191.88,191.82,4.0252]
[1730995929225,20.5636101,191.94,191.82,0.421]
[1730995929417,2.6033,191.9,191.84,2.604]
[1730995929619,20.5636101,191.94,191.82,0.421]
[1730995930312,2.6032,191.91,191.84,2.6041]
[1730995930522,19.5636101,191.94,191.84,1.6041]
[1730995931509,20.0185101,191.9,191.76,4.6]
[1730995931812,2.6322,191.89,191.74,20.0185101]
[1730995932015,2.6322,191.89,191.74,24.6185101]
[1730995932219,2.6039,191.85,191.74,24.6185101]
[1730995932720,2.6322,191.89,191.79,2.6046]
[1730995932919,2.6322,191.89,191.79,1.6046]
[1730995933516,2.6041,191.84,191.79,1.6046]
[1730995933814,1.6041,191.84,191.79,1.6046]
[1730995934217,1.6041,191.84,191.74,24.6185101]
[1730995934413,2.6322,191.89,191.75,2.4289]
[1730995934720,2.6039,191.85,191.8,2.6045]
[1730995934915,2.6322,191.89,191.77,20.0185101]
[1730995935112,20.0185101,191.93,191.75,2.4289]
[1730995935113,20.0185101,191.93,191.81,20.0185101]
[1730995935713,19.0185101,191.93,191.81,20.0185101]
[1730995935915,2.6036,191.88,191.83,2.6041]
[1730995936119,2.6036,191.88,191.83,1.6041]
[1730995936615,2.6036,191.88,191.84,2.6041]
[1730995936819,1.6036,191.88,191.84,2.6041]
[1730995937218,19.0185101,191.93,191.81,19.0185101]
[1730995937921,2.6033,191.9,191.83,2.6042]
[1730995938122,19.0185101,191.93,191.81,19.0185101]
[1730995938426,20.0185101,191.9,191.76,2.4794]
[1730995938918,2.6042,191.84,191.76,2.4794]
[1730995939126,20.0185101,191.84,191.73,2.6192]
[1730995939328,19.0185101,191.84,191.73,2.6192]
[1730995939632,2.6047,191.8,191.73,4.2247]
[1730995939830,2.6047,191.8,191.73,1.6192]
[1730995940117,7.7153,191.86,191.73,1.6192]
[1730995940520,6.7153,191.86,191.73,1.6192]
[1730995941022,6.7153,191.86,191.74,2.6053]
[1730995941727,5.7153,191.86,191.74,2.6053]
[1730995941915,5.7153,191.86,191.75,2.6052]
[1730995942118,5.7153,191.86,191.73,0.6192]
[1730995942516,5.7153,191.86,191.74,2.6054]
[1730995942719,2.6047,191.8,191.74,2.6054]
[1730995942921,5.7153,191.86,191.74,2.6054]
[1730995943123,5.7153,191.86,191.73,0.6192]
[1730995943322,3.2282,191.86,191.74,20.0185101]
[1730995943522,19.0185101,191.91,191.74,20.0185101]
[1730995943825,5.0845,191.93,191.76,20.0185101]
[1730995944018,20.0185101,191.9,191.76,20.0185101]
[1730995944222,20.0185101,191.9,191.76,19.0185101]
[1730995944619,2.6038,191.86,191.81,2.6044]
[1730995944818,9.6645,191.93,191.79,20.0185101]
[1730995944819,25.1030101,191.93,191.79,20.0185101]
[1730995945124,4.0845,191.93,191.8,5.1327]
[1730995945320,2.6032,191.91,191.86,2.6037]
[1730995945625,2.5702,191.93,191.8,5.1327]
[1730995946317,2.6034,191.89,191.84,2.6039]
[1730995946517,2.5702,191.93,191.8,5.1327]
[1730995946916,2.5702,191.93,191.8,4.1327]
[1730995947324,2.6036,191.88,191.8,4.1327]
[1730995947820,2.603,191.93,191.8,4.1327]
[1730995948016,2.603,191.93,191.83,20.0185101]
[1730995948212,0.18538,191.94,191.84,2.4436]
[1730995948418,2.6029,191.93,191.84,2.4436]
[1730995948722,0.18538,191.94,191.84,2.4436]
[1730995948924,0.18538,191.94,191.87,2.6035]
[1730995949126,2.6031,191.92,191.87,2.6035]
[1730995949311,1.6031,191.92,191.87,2.6035]
[1730995949717,1.6031,191.92,191.87,1.6035]
[1730995950323,2.6034,191.9,191.84,5.0476]
[1730995950724,1.81728,191.96,191.84,2.4436]
[1730995950919,2.6035,191.89,191.84,5.0476]
[1730995951115,1.81728,191.96,191.84,5.0476]
[1730995951318,1.81728,191.96,191.84,2.4436]
[1730995951521,2.6039,191.86,191.84,2.4436]
[1730995951730,2.6039,191.86,191.84,1.4436]
[1730995952027,1.81728,191.96,191.84,1.4436]
[1730995952419,5.2035,192.02,191.84,1.4436]
[1730995952420,9.7817,192.08,191.85,24.5985101]
[1730995952620,2.6024,191.96,191.92,2.6029]
[1730995952918,1.4534,191.99,191.85,27.0737101]
[1730995953322,2.6024,191.97,191.85,27.0737101]
[1730995953618,1.4534,191.99,191.85,27.0737101]
[1730995953819,0.4534,191.99,191.85,27.0737101]
[1730995954027,2.6024,191.96,191.89,1.6033]
[1730995954227,2.6024,191.96,191.85,27.0737101]
[1730995954618,2.6023,191.97,191.92,2.6029]
[1730995954822,5.0961,192.03,191.89,20.0185101]
[1730995955019,5.0961,192.03,191.9,2.5675]
[1730995955020,4.0961,192.03,191.9,2.5675]
[1730995955219,2.602,191.99,191.9,2.5675]
[1730995955425,4.0961,192.03,191.9,1.5675]
[1730995956025,4.0961,192.03,191.95,2.6025]
[1730995956331,3.0961,192.03,191.9,1.5675]
[1730995956522,20.0185101,192.01,191.85,2.4752]
[1730995956716,20.0185101,191.98,191.86,2.5675]
[1730995957531,19.0185101,191.98,191.86,2.5675]
[1730995957831,2.6028,191.94,191.86,2.5675]
[1730995958134,19.0185101,191.98,191.86,2.5675]
[1730995958429,2.6031,191.92,191.87,2.6035]
[1730995958626,18.0185101,191.98,191.86,2.5675]
[1730995958826,2.6033,191.9,191.86,2.5675]
[1730995959030,2.6033,191.9,191.86,1.5675]
[1730995959324,2.6034,191.9,191.85,4.0791]
[1730995959526,22.5985101,191.98,191.85,4.0791]
[1730995959723,22.5985101,191.98,191.87,2.6036]
[1730995959924,2.6031,191.92,191.87,2.6036]
[1730995960231,3.0961,192.03,191.89,20.0185101]
[1730995960232,2.5899,192.03,191.89,20.0185101]
[1730995960530,1.6021,191.99,191.89,20.0185101]
[1730995961026,1.6021,191.99,191.94,2.6026]
[1730995961429,2.6023,191.97,191.89,19.0185101]
[1730995961828,1.6023,191.97,191.92,2.6029]
[1730995962131,1.6023,191.97,191.92,1.6029]
[1730995963132,20.0185101,192.02,191.89,19.0185101]
[1730995963520,20.0185101,192.02,191.89,18.0185101]
[1730995963725,2.6023,191.97,191.92,2.6029]
[1730995964032,20.0185101,191.99,191.85,1.4752]
[1730995964233,20.0185101,191.96,191.85,1.4752]
[1730995964436,5.0365,191.98,191.82,4.58]
[1730995964734,20.0185101,191.95,191.82,3.58]
[1730995964935,20.0185101,191.95,191.84,2.604]
[1730995965433,4.58,191.97,191.87,2.6036]
[1730995965434,2.6031,191.91,191.87,2.6036]
[1730995965733,4.58,191.97,191.83,20.0185101]
[1730995965930,4.58,191.97,191.82,3.58]
[1730995966125,2.6029,191.93,191.85,2.6039]
[1730995966330,4.58,191.97,191.85,2.6039]
[1730995966535,4.58,191.97,191.82,2.58]
[1730995966726,20.0185101,191.95,191.84,2.604]
[1730995967339,2.5966,191.94,191.84,2.604]
[1730995967538,1.6035,191.89,191.82,2.58]
[1730995967834,1.6035,191.89,191.8,25.1362101]
[1730995968041,2.5966,191.94,191.8,25.1362101]
[1730995968042,2.6037,191.87,191.81,2.6043]
[1730995968230,2.5966,191.94,191.8,25.1362101]
[1730995968430,2.5966,191.94,191.8,24.1362101]
[1730995968831,2.5966,191.94,191.81,2.6044]
[1730995969030,2.5966,191.94,191.8,24.1362101]
[1730995969234,1.5966,191.94,191.8,24.1362101]
[1730995969438,2.6033,191.9,191.82,2.6043]
[1730995969737,1.5966,191.94,191.82,1.6043]
[1730995970639,0.5966,191.94,191.83,2.6041]
[1730995971038,2.6035,191.88,191.83,1.6041]
[1730995971835,1.6035,191.88,191.83,1.6041]
[1730995973042,1.6035,191.88,191.8,24.1362101]
[1730995973043,0.5966,191.94,191.8,24.1362101]
[1730995973445,2.6037,191.87,191.82,2.6043]
[1730995973831,3.24704418,191.94,191.8,24.1362101]
[1730995974030,2.6038,191.86,191.82,1.6043]
[1730995974235,0.5966,191.94,191.8,24.1362101]
[1730995974437,2.6039,191.85,191.8,5.2221]
[1730995974837,19.0185101,191.91,191.79,2.4146]
[1730995975031,2.6042,191.83,191.78,2.6048]
[1730995975242,2.6042,191.83,191.78,1.6048]
[1730995975736,2.6042,191.83,191.79,2.6047]
[1730995976141,1.6042,191.83,191.79,2.6047]
[1730995976346,1.6042,191.83,191.79,1.6047]
[1730995976542,2.6045,191.81,191.77,2.6049]
[1730995976934,20.0185101,191.88,191.74,25.0225101]
[1730995977138,20.0185101,191.88,191.74,5.004]
[1730995977436,9.5371,191.9,191.71,20.0185101]
[1730995977437,19.0185101,191.85,191.71,20.0185101]
[1730995977640,2.4198,191.84,191.71,20.0185101]
[1730995977844,2.605,191.78,191.73,2.6054]
[1730995978738,1.605,191.78,191.73,2.6054]
[1730995978938,1.605,191.78,191.72,55.69484466]
[1730995979140,1.605,191.78,191.74,2.6054]
[1730995979535,20.0185101,191.81,191.69,2.606]
[1730995979744,19.0185101,191.78,191.67,2.4635]
[1730995979948,19.0185101,191.78,191.66,4.9417]
[1730995980244,2.6057,191.72,191.67,2.6063]
[1730995980444,2.6057,191.72,191.66,3.9417]
[1730995980946,19.0185101,191.78,191.66,3.9417]
[1730995981144,18.0185101,191.78,191.66,3.9417]
[1730995981543,18.0185101,191.78,191.66,2.9417]
[1730995981746,20.56435139,191.78,191.64,4.56]
[1730995981945,18.0185101,191.78,191.63,20.0185101]
[1730995982646,2.54141012,191.79,191.63,20.0185101]
[1730995982647,20.0185101,191.75,191.63,20.0185101]
[1730995983034,19.0185101,191.75,191.62,2.4128]
[1730995983239,2.6062,191.69,191.64,1.6067]
[1730995983542,2.54141012,191.79,191.62,2.4128]
[1730995983741,2.6051,191.76,191.71,2.6057]
[1730995984140,1.6051,191.76,191.71,2.6057]
[1730995984648,1.6051,191.76,191.71,1.6057]
[1730995985444,0.6051,191.76,191.71,1.6057]
[1730995985651,5.0173,191.8,191.71,1.6057]
[1730995985846,25.0358101,191.8,191.62,2.4128]
[1730995986036,25.0358101,191.8,191.63,24.5785101]
[1730995986236,25.0358101,191.8,191.63,20.0185101]
[1730995986441,25.0358101,191.8,191.67,2.6063]
[1730995986642,24.0358101,191.8,191.67,2.6063]
[1730995987345,24.0358101,191.8,191.67,1.6063]
[1730995987844,2.6057,191.73,191.64,2.4648]
[1730995988052,2.6057,191.73,191.68,2.6062]
[1730995988650,24.0358101,191.8,191.64,2.4648]
[1730995988845,2.6056,191.73,191.68,2.6062]
[1730995989639,2.6056,191.73,191.68,1.6062]
[1730995989846,24.0358101,191.8,191.68,1.6062]
[1730995990352,2.6055,191.74,191.68,1.6062]
[1730995990557,1.6055,191.74,191.68,1.6062]
[1730995991353,2.6056,191.73,191.69,2.6061]
[1730995991545,20.0185101,191.77,191.64,1.4648]
[1730995991942,2.6059,191.71,191.66,2.6065]
[1730995992142,20.0185101,191.77,191.62,2.4128]
[1730995992143,20.0185101,191.74,191.62,2.4128]
[1730995992349,2.6063,191.68,191.63,2.6069]
[1730995992648,1.6063,191.68,191.63,2.6069]
[1730995992847,1.6063,191.68,191.63,1.6069]
[1730995993647,20.0185101,191.74,191.62,2.4128]
[1730995993853,2.4133,191.72,191.62,2.4128]
[1730995994048,20.0185101,191.71,191.57,19.0185101]
[1730995994357,27.1425101,191.71,191.55,5.1025]
[1730995995055,26.1425101,191.71,191.55,5.1025]
[1730995995250,2.6067,191.65,191.6,2.6072]
[1730995995450,26.1425101,191.71,191.55,5.1025]
[1730995996051,2.6069,191.64,191.55,5.1025]
[1730995996249,25.1425101,191.71,191.55,5.1025]
[1730995996452,2.6067,191.65,191.59,2.6074]
[1730995996659,20.0185101,191.69,191.59,2.6074]
[1730995997056,2.4016,191.68,191.59,2.6074]
[1730995997357,2.6069,191.64,191.59,1.6074]
[1730995997856,2.4016,191.68,191.59,2.6071]
[1730995998055,1.4016,191.68,191.59,2.6071]
[1730995998253,1.4016,191.68,191.55,5.1025]
[1730995998455,1.4016,191.68,191.55,4.1025]
[1730995998651,1.4016,191.68,191.6,2.607]
[1730995999362,1.6065,191.65,191.58,12.51604915]
[1730995999763,1.6065,191.65,191.6,2.607]
[1730996000253,1.6065,191.65,191.58,11.51604915]
[1730996000459,2.6063,191.66,191.61,2.6069]
[1730996000847,1.6063,191.66,191.61,2.6069]
[1730996001048,1.6063,191.66,191.61,1.6069]
[1730996001449,2.6058,191.7,191.64,2.6065]
[1730996001756,12.51604915,191.71,191.64,2.6065]
[1730996001950,11.51604915,191.71,191.64,2.6065]
[1730996002150,2.6059,191.69,191.64,2.6065]
[1730996002347,2.6059,191.69,191.64,1.6065]
[1730996002752,2.606,191.68,191.63,2.6066]
[1730996002954,2.606,191.68,191.6,12.51604915]
[1730996003461,1.606,191.68,191.64,2.6065]
[1730996003661,2.606,191.69,191.6,11.51604915]
[1730996004064,11.51604915,191.71,191.64,2.6064]
[1730996004261,2.606,191.68,191.64,2.6064]
[1730996004565,11.51604915,191.71,191.6,11.51604915]
[1730996004867,2.6061,191.68,191.63,1.6067]
[1730996005763,1.6061,191.68,191.64,2.6065]
[1730996005963,1.6061,191.68,191.64,1.6065]
[1730996007264,1.6061,191.68,191.6,11.51604915]
[1730996007461,0.6061,191.68,191.64,2.6065]
[1730996007655,11.51604915,191.71,191.64,2.6065]
[1730996007960,11.51604915,191.71,191.64,1.6065]
[1730996008161,2.6059,191.69,191.64,1.6065]
[1730996008359,11.51604915,191.71,191.64,1.6065]
[1730996008768,10.51604915,191.71,191.64,1.6065]
[1730996008958,10.51604915,191.71,191.6,11.51604915]
[1730996009958,9.51604915,191.71,191.6,11.51604915]
[1730996010161,2.6061,191.68,191.64,2.6065]
[1730996010765,2.6061,191.68,191.64,1.6065]
[1730996011262,9.51604915,191.71,191.6,11.51604915]
[1730996011464,2.4132,191.73,191.55,4.1025]
[1730996011465,2.4132,191.73,191.63,12.51604915]
[1730996011860,2.4132,191.73,191.61,7.0459]
[1730996011861,0.19253,191.78,191.66,12.51604915]
[1730996012070,0.19253,191.78,191.72,12.51604915]
[1730996012258,0.19253,191.78,191.72,17.05604915]
[1730996012459,1.79683,191.81,191.76,2.6048]
[1730996012763,12.51604915,191.85,191.76,1.6048]
[1730996012964,2.6043,191.81,191.76,1.6048]
[1730996013366,2.6045,191.79,191.74,2.6051]
[1730996013570,12.51604915,191.82,191.72,17.05604915]
[1730996013772,11.51604915,191.82,191.72,17.05604915]
[1730996014072,11.51604915,191.82,191.74,1.6051]
[1730996014871,1.6046,191.79,191.74,1.6051]
[1730996015263,1.6046,191.79,191.72,17.05604915]
[1730996016067,2.6047,191.78,191.72,17.05604915]
[1730996016264,1.6047,191.78,191.72,17.05604915]
[1730996016464,11.51604915,191.82,191.72,16.05604915]
[1730996016672,2.6044,191.8,191.75,2.605]
[1730996017573,1.6044,191.8,191.75,2.605]
[1730996017764,1.6044,191.8,191.75,1.605]
[1730996018367,12.51604915,191.82,191.72,16.05604915]
[1730996018577,11.51604915,191.82,191.72,4.54]
[1730996018871,11.51604915,191.82,191.7,12.51604915]
[1730996019077,2.6049,191.76,191.71,2.6056]
[1730996019674,12.51604915,191.8,191.7,11.51604915]
[1730996019861,11.51604915,191.78,191.69,2.6058]
[1730996020068,2.6273,191.79,191.67,12.51604915]
[1730996020365,12.51604915,191.77,191.67,11.51604915]
[1730996020567,2.6054,191.73,191.67,14.12204915]
[1730996020963,2.6055,191.72,191.67,14.12204915]
[1730996021171,12.51604915,191.77,191.67,14.12204915]
[1730996021476,12.51604915,191.77,191.65,12.51604915]
[1730996021477,2.6056,191.71,191.65,12.51604915]
[1730996021770,2.6056,191.71,191.65,11.51604915]
[1730996021973,2.6056,191.71,191.64,4.54]
[1730996022178,2.6056,191.71,191.65,12.51604915]
[1730996022475,2.3857,191.76,191.65,12.51604915]
[1730996022971,2.3857,191.76,191.62,2.4182]
[1730996022972,2.6055,191.72,191.62,2.4182]
[1730996023164,1.6055,191.72,191.66,12.51604915]
[1730996023567,1.6055,191.72,191.68,1.606]
[1730996024668,2.3857,191.76,191.68,1.606]
[1730996025070,2.3857,191.76,191.67,12.51604915]
[1730996025676,2.6057,191.71,191.66,2.6061]
[1730996025972,2.61953421,191.75,191.63,12.51604915]
[1730996026570,14.90174915,191.76,191.66,2.6062]
[1730996026973,2.64639455,191.75,191.64,12.51604915]
[1730996027278,2.6057,191.7,191.66,2.6062]
[1730996027668,2.6059,191.69,191.65,2.6063]
[1730996028077,2.6059,191.69,191.65,1.6063]
[1730996028676,2.66402323,191.75,191.64,15.12254915]
[1730996028877,2.66402323,191.75,191.22,46.99682834]
[1730996028878,12.51604915,191.73,191.55,56.75236525]
[1730996029082,14.09973959,191.73,191.6,12.51604915]
[1730996029479,14.09973959,191.73,191.62,1.6068]
[1730996029874,2.6059,191.69,191.64,2.6064]
[1730996030078,11.51604915,191.73,191.63,12.51604915]
[1730996030481,2.6059,191.69,191.65,2.6064]
[1730996031081,2.6059,191.69,191.63,12.51604915]
[1730996031082,2.6057,191.71,191.66,2.6062]
[1730996031275,4.54,191.74,191.6,12.51604915]
[1730996031475,2.3857,191.76,191.65,12.51604915]
[1730996031682,2.6053,191.74,191.68,15.12194915]
[1730996031982,2.3857,191.76,191.68,15.12194915]
[1730996032283,1.3857,191.76,191.68,12.51604915]
[1730996032782,2.6055,191.72,191.68,14.12204915]
[1730996033574,1.6055,191.72,191.68,14.12204915]
[1730996034074,2.6053,191.73,191.68,10.51604915]
[1730996034280,2.6053,191.73,191.69,2.6058]
[1730996034478,12.51604915,191.77,191.68,10.51604915]
[1730996034681,2.6049,191.76,191.68,10.51604915]
[1730996034985,2.59215363,191.8,191.73,12.51604915]
[1730996035378,12.51604915,191.85,191.77,2.6047]
[1730996035778,2.6041,191.82,191.77,1.6047]
[1730996035981,12.51604915,191.85,191.78,2.6046]
[1730996036581,11.51604915,191.85,191.75,12.51604915]
[1730996036784,17.53094915,191.87,191.77,12.51604915]
[1730996036983,17.53094915,191.87,191.77,11.51604915]
[1730996037782,2.6039,191.84,191.79,2.6044]
[1730996037982,1.6039,191.84,191.77,11.51604915]
[1730996038282,2.6041,191.83,191.77,2.6048]
[1730996038482,17.53094915,191.87,191.75,12.51604915]
[1730996038689,12.51604915,191.85,191.75,12.51604915]
[1730996038877,2.6041,191.82,191.76,2.6048]
[1730996039081,2.6041,191.82,191.75,12.51604915]
[1730996039289,1.6041,191.82,191.75,12.51604915]
[1730996039482,1.6041,191.82,191.75,11.51604915]
[1730996039685,2.6043,191.81,191.76,2.6049]
[1730996040085,2.6043,191.81,191.75,11.51604915]
[1730996040584,1.6043,191.81,191.77,2.6047]
[1730996040785,1.6043,191.81,191.77,1.6047]
[1730996042089,17.53094915,191.87,191.77,1.6047]
[1730996042689,17.53094915,191.87,191.75,11.51604915]
[1730996042880,5.0149,191.87,191.77,12.51604915]
[1730996043587,2.6038,191.85,191.8,2.6043]
[1730996043882,2.6038,191.85,191.8,1.6043]
[1730996044192,4.0149,191.87,191.77,2.6047]
[1730996044193,2.604,191.83,191.77,2.6047]
[1730996044384,16.53094915,191.87,191.76,12.51604915]
[1730996045188,12.51604915,191.87,191.76,11.51604915]
[1730996045781,2.6042,191.82,191.76,11.51604915]
[1730996045983,2.6042,191.82,191.77,2.6047]
[1730996046294,1.6042,191.82,191.77,2.6047]
[1730996046488,12.51604915,191.87,191.76,11.51604915]
[1730996046693,12.51604915,191.87,191.74,12.51604915]
[1730996047084,12.51604915,191.87,191.74,15.12104915]
[1730996047085,2.6043,191.81,191.74,15.12104915]
[1730996047289,12.51604915,191.84,191.74,12.51604915]
[1730996047493,12.51604915,191.84,191.73,2.5695]
[1730996047494,2.4694,191.83,191.73,2.5695]
[1730996047892,2.6047,191.78,191.73,2.5695]
[1730996048195,1.6047,191.78,191.73,2.5695]
[1730996048401,1.6047,191.78,191.73,1.5695]
[1730996048791,1.6047,191.78,191.73,4.1748]
[1730996049291,1.6047,191.78,191.73,2.6053]
[1730996049492,1.6047,191.78,191.71,12.51604915]
[1730996049890,2.6048,191.77,191.73,2.6053]
[1730996050302,12.51604915,191.81,191.7,2.6057]
[1730996050902,12.51604915,191.81,191.7,1.6057]
[1730996051510,2.6051,191.75,191.71,2.6056]
[1730996051807,1.6051,191.75,191.71,2.6056]
[1730996052108,1.6051,191.75,191.71,1.6056]
[1730996052302,2.6047,191.78,191.69,15.12184915]
[1730996052502,12.51604915,191.81,191.69,12.51604915]
[1730996053016,2.4694,191.83,191.75,12.51604915]
[1730996053197,2.4694,191.83,191.75,11.51604915]
[1730996053609,2.5047,191.84,191.77,2.6048]
[1730996053809,19.59604915,191.86,191.77,2.6048]
[1730996054005,2.6041,191.83,191.77,15.12084915]
[1730996054208,14.07604915,191.86,191.77,15.12084915]